bitfinex-derivatives/quotes_SOLF0:USTF0_20250903
["timestamp","ask_amount","ask_price","bid_price","bid_amount"]
[1756867756222,11.32085939,211.25,211.08,7.89]
[1756867756415,11.32085939,211.25,211.1,7.89]
[1756867756621,51.26,211.24,211.1,7.89]
[1756867756824,0.03218428,211.2,211.1,7.89]
[1756867757417,0.03218428,211.2,211.11,4.39589396]
[1756867757720,0.03218428,211.2,211.1,7.89]
[1756867757916,0.03218428,211.2,211.12,7.89]
[1756867758320,114.15,211.23,211.12,7.89]
[1756867758518,0.03638488,211.18,211.12,7.89]
[1756867759416,1.7236014,211.17,211.09,1.7236014]
[1756867759722,1.7236014,211.17,211.1,12.28546341]
[1756867759926,1.7236014,211.17,211.11,4.39546341]
[1756867760118,0.03638488,211.18,211.12,7.89]
[1756867760615,0.03638488,211.18,211.14,7.89]
[1756867760819,0.03638488,211.18,211.13,1.7236014]
[1756867761020,0.03638488,211.18,211.14,7.89]
[1756867761316,0.03638488,211.18,211.13,1.7236014]
[1756867761817,0.03638488,211.18,211.14,7.89]
[1756867762022,0.03638488,211.18,211.13,1.7236014]
[1756867762219,0.03638488,211.18,211.14,7.89]
[1756867762418,0.03638488,211.18,211.13,1.7236014]
[1756867762613,0.03638488,211.18,211.15,7.89]
[1756867762819,0.03638488,211.18,211.13,1.7236014]
[1756867763019,0.03638488,211.18,211.15,7.89]
[1756867763323,0.03638488,211.18,211.13,1.7236014]
[1756867763518,0.03638488,211.18,211.14,4.39730524]
[1756867763824,0.03638488,211.18,211.13,1.7236014]
[1756867764023,0.03638488,211.18,211.14,4.39730524]
[1756867764224,0.03638488,211.18,211.14,7.89]
[1756867764424,0.03638488,211.18,211.13,1.7236014]
[1756867764720,0.03638488,211.18,211.15,7.89]
[1756867764921,0.03638488,211.18,211.14,7.89]
[1756867765122,0.03638488,211.18,211.15,4.39827652]
[1756867765321,0.03638488,211.18,211.14,7.89]
[1756867765624,0.03638488,211.18,211.16,7.89]
[1756867766030,0.03638488,211.18,211.17,4.39881714]
[1756867766218,7.15,211.28,211.18,7.89]
[1756867766219,8.8736014,211.28,211.18,7.89]
[1756867766422,8.8736014,211.28,211.19,6.12241854]
[1756867766724,8.8736014,211.28,211.2,4.39881714]
[1756867767025,8.8736014,211.28,211.19,1.7236014]
[1756867767229,8.8736014,211.28,211.2,4.40046136]
[1756867767526,0.03204975,211.26,211.19,1.7236014]
[1756867767718,0.03204975,211.26,211.2,4.40117006]
[1756867767919,1.75565115,211.26,211.18,9.6136014]
[1756867768124,1.75565115,211.26,211.19,4.40122456]
[1756867768324,1.75565115,211.26,211.2,4.40234053]
[1756867768528,1.75565115,211.26,211.18,9.6136014]
[1756867768718,1.75565115,211.26,211.24,1.7236014]
[1756867768719,0.03204975,211.26,211.24,1.7236014]
[1756867768924,7.15,211.39,211.25,12.77169628]
[1756867769125,8.8736014,211.39,211.31,9.6136014]
[1756867769425,7.15,211.39,211.31,9.6136014]
[1756867770023,8.8736014,211.44,211.35,1.7236014]
[1756867770929,8.8736014,211.44,211.37,0.03009789]
[1756867771423,7.15,211.44,211.37,0.03009789]
[1756867771729,291.78,211.45,211.37,7.92009789]
[1756867775231,127.75,211.46,211.37,7.92009789]
[1756867776731,127.75,211.46,211.37,0.03009789]
[1756867779526,133.05189889,211.46,211.37,0.03009789]
[1756867784534,7.38,211.44,211.37,0.03009789]
[1756867785437,12.68189889,211.44,211.37,0.03009789]
[1756867785838,7.38,211.42,211.37,0.03009789]
[1756867786339,7.38,211.4,211.37,0.03009789]
[1756867786536,7.38,211.38,211.37,0.03009789]
[1756867787039,7.86,211.38,211.37,0.03009789]
[1756867787335,7.38,211.51,211.38,7.62]
[1756867788031,7.38,211.51,211.42,7.65164837]
[1756867791332,7.38,211.51,211.42,0.03164837]
[1756867792040,12.68189889,211.51,211.42,0.03164837]
[1756867792537,12.68189889,211.51,211.25,4.2598]
[1756867792538,7.38,211.47,211.31,7.62]
[1756867792743,7.38,211.45,211.31,7.62]
[1756867793737,7.38,211.42,211.31,7.62]
[1756867793943,0.03434269,211.4,211.31,7.62]
[1756867796444,7.38,211.39,211.31,7.62]
[1756867797748,7.38,211.39,211.22,7.62]
[1756867797944,26.62,211.38,211.22,7.62]
[1756867798345,0.03073487,211.32,211.22,7.62]
[1756867798747,0.03073487,211.32,211.24,7.62]
[1756867808167,0.03073487,211.32,211.25,4.39208213]
[1756867808366,0.03073487,211.32,211.24,7.62]
[1756867808570,0.03073487,211.32,211.25,4.39207713]
[1756867808770,0.03073487,211.32,211.24,7.62]
[1756867811264,0.03073487,211.32,211.25,4.4002325]
[1756867811468,0.03073487,211.32,211.24,7.62]
[1756867812164,0.03073487,211.32,211.25,4.40272128]
[1756867812371,0.03073487,211.32,211.24,7.62]
[1756867812568,0.03073487,211.32,211.25,4.40515883]
[1756867812865,0.03073487,211.32,211.24,7.62]
[1756867813064,0.03073487,211.32,211.25,4.40472915]
[1756867813371,0.03073487,211.32,211.26,4.40472915]
[1756867813669,0.03073487,211.32,211.22,7.39]
[1756867813860,0.03073487,211.32,211.24,7.39]
[1756867814163,0.03073487,211.32,211.25,4.40694628]
[1756867814367,0.03073487,211.32,211.26,4.40694628]
[1756867814563,0.03073487,211.32,211.24,7.39]
[1756867814765,0.03073487,211.32,211.25,4.40664302]
[1756867814964,0.03073487,211.32,211.26,4.40664302]
[1756867815167,0.03073487,211.32,211.24,7.39]
[1756867815358,7.45,211.31,211.25,4.40517957]
[1756867815559,10.13930977,211.29,211.2,7.39]
[1756867815759,10.13930977,211.29,211.21,4.40580882]
[1756867815962,0.03178601,211.27,211.2,7.39]
[1756867817861,0.03178601,211.27,211.22,7.39]
[1756867818066,0.03178601,211.27,211.24,7.39]
[1756867818261,0.03178601,211.27,211.21,7.39]
[1756867818474,0.03178601,211.27,211.2,2.68930977]
[1756867818475,7.45,211.34,211.24,7.39]
[1756867818767,7.87341422,211.4,211.27,7.39]
[1756867818768,7.45,211.4,211.27,7.39]
[1756867818972,7.45,211.4,211.28,4.39551248]
[1756867819174,7.45,211.4,211.3,7.39]
[1756867819775,7.45,211.4,211.33,0.03588658]
[1756867820366,5.30189889,211.41,211.33,0.03588658]
[1756867820573,5.30189889,211.43,211.34,7.39]
[1756867822278,5.30189889,211.42,211.34,7.39]
[1756867822874,7.45,211.41,211.33,0.03588658]
[1756867824979,12.75189889,211.41,211.33,0.03588658]
[1756867825175,7.45,211.41,211.33,0.03588658]
[1756867825776,5.30189889,211.39,211.33,0.03588658]
[1756867825975,5.30189889,211.38,211.33,0.03588658]
[1756867826379,7.45,211.37,211.33,0.03588658]
[1756867826580,5.30189889,211.38,211.33,0.03588658]
[1756867826773,7.45,211.37,211.33,0.03588658]
[1756867827175,5.30189889,211.38,211.33,0.03588658]
[1756867827577,7.45,211.36,211.33,0.03588658]
[1756867827778,7.45,211.37,211.33,0.03588658]
[1756867827979,83.05189889,211.37,211.33,0.03588658]
[1756867828175,12.75189889,211.35,211.33,0.03588658]
[1756867828380,7.93,211.34,211.22,7.39]
[1756867828579,5.29185019,211.32,211.22,7.39]
[1756867828782,12.74185019,211.31,211.22,7.39]
[1756867829477,5.29185019,211.3,211.22,7.39]
[1756867829682,0.03355519,211.29,211.22,7.39]
[1756867830476,7.45,211.28,211.14,7.39]
[1756867830684,7.45,211.28,211.16,7.39]
[1756867830886,7.45,211.28,211.17,4.3973411]
[1756867831079,0.03504647,211.23,211.18,11.7873411]
[1756867831382,0.03504647,211.23,211.12,7.39]
[1756867831580,0.03504647,211.23,211.14,7.39]
[1756867831784,0.03504647,211.23,211.16,7.39]
[1756867832087,0.03504647,211.23,211.18,7.39]
[1756867832384,0.03504647,211.23,211.19,4.39582387]
[1756867832580,0.03504647,211.23,211.12,7.39]
[1756867832782,0.03504647,211.23,211.14,7.39]
[1756867832978,0.03504647,211.23,211.16,7.39]
[1756867833184,0.03504647,211.23,211.17,4.39244198]
[1756867833380,0.03504647,211.23,211.18,4.39244198]
[1756867833685,0.03504647,211.23,211.2,7.39]
[1756867833887,0.03504647,211.23,211.13,7.39]
[1756867834186,0.03504647,211.23,211.15,7.39]
[1756867834481,0.03504647,211.23,211.12,4.18587895]
[1756867834482,0.03504647,211.23,211.17,7.39]
[1756867834683,0.03504647,211.23,211.19,7.39]
[1756867835587,7.48504647,211.23,211.19,7.39]
[1756867835789,0.03504647,211.23,211.1,7.39]
[1756867836085,5.29185019,211.27,211.12,4.18587895]
[1756867836380,23.43341422,211.3,211.16,4.18587895]
[1756867836381,0.03033205,211.19,211.16,4.18587895]
[1756867836582,20.85185019,211.3,211.18,7.39]
[1756867836783,20.85185019,211.3,211.2,7.39]
[1756867837084,20.85185019,211.3,211.16,4.18587895]
[1756867837085,20.85185019,211.3,211.22,7.39]
[1756867837683,5.29185019,211.3,211.22,7.39]
[1756867837878,5.29185019,211.32,211.23,4.39943654]
[1756867838077,5.29185019,211.32,211.22,7.39]
[1756867838078,5.29185019,211.32,211.25,7.39]
[1756867838282,5.29185019,211.33,211.25,7.39]
[1756867838777,5.29185019,211.34,211.25,7.39]
[1756867839580,5.29185019,211.35,211.26,4.39611794]
[1756867839884,12.74185019,211.36,211.25,7.39]
[1756867840085,12.74185019,211.36,211.26,4.39526009]
[1756867840285,12.74185019,211.36,211.27,4.39526009]
[1756867840488,12.74185019,211.36,211.25,7.39]
[1756867840688,12.74185019,211.36,211.26,4.39530921]
[1756867840888,12.74185019,211.36,211.27,4.39530921]
[1756867841084,12.74185019,211.36,211.25,7.39]
[1756867841289,5.29185019,211.38,211.26,4.39500696]
[1756867841484,5.29185019,211.39,211.28,7.83]
[1756867841683,5.29185019,211.39,211.3,7.83]
[1756867841879,12.74185019,211.4,211.31,4.39247853]
[1756867842086,12.74185019,211.4,211.3,7.83]
[1756867842285,12.74185019,211.4,211.31,4.39243708]
[1756867842485,12.74185019,211.4,211.3,7.83]
[1756867842787,12.74185019,211.4,211.31,4.39227513]
[1756867842983,12.74185019,211.4,211.3,7.83]
[1756867843189,12.74185019,211.4,211.31,4.39244691]
[1756867843391,12.74185019,211.4,211.3,7.83]
[1756867843580,12.74185019,211.4,211.31,4.39246378]
[1756867843785,12.74185019,211.4,211.3,7.83]
[1756867844087,12.74185019,211.4,211.31,4.39370489]
[1756867844285,7.45,211.4,211.32,4.39305508]
[1756867844491,7.45,211.4,211.33,7.83]
[1756867844689,7.45,211.4,211.29,7.83]
[1756867844897,7.45,211.4,211.3,4.39309458]
[1756867845184,7.45,211.4,211.31,4.39309458]
[1756867845391,7.45,211.4,211.32,4.39309458]
[1756867845588,7.45,211.4,211.29,7.83]
[1756867845788,7.45,211.4,211.3,4.39364226]
[1756867845989,5.29185019,211.44,211.35,7.83]
[1756867846186,12.71185019,211.49,211.37,7.83]
[1756867846387,7.42,211.49,211.38,4.39169624]
[1756867846582,7.42,211.49,211.37,7.83]
[1756867846786,7.42,211.49,211.38,4.38814975]
[1756867846987,7.42,211.49,211.37,7.83]
[1756867847190,7.42,211.49,211.38,4.38795482]
[1756867847392,7.42,211.49,211.37,7.83]
[1756867849792,12.71185019,211.49,211.37,7.83]
[1756867850692,7.42,211.49,211.39,7.83]
[1756867851190,7.42,211.49,211.42,0.03537258]
[1756867854297,5.29185019,211.48,211.42,0.03537258]
[1756867854796,7.42,211.47,211.42,0.03537258]
[1756867855198,5.29185019,211.48,211.42,0.03537258]
[1756867855397,7.42,211.47,211.42,0.03537258]
[1756867855999,5.29185019,211.48,211.42,0.03537258]
[1756867856196,7.42,211.47,211.42,0.03537258]
[1756867856594,12.71185019,211.47,211.42,0.03537258]
[1756867856797,5.29185019,211.48,211.42,0.03537258]
[1756867857399,1.71905946,211.46,211.42,0.03537258]
[1756867857598,7.42,211.45,211.42,0.03537258]
[1756867858097,1.71905946,211.46,211.42,0.03537258]
[1756867858497,7.42,211.45,211.42,0.03537258]
[1756867858695,7.42,211.44,211.42,0.03537258]
[1756867859295,1.71905946,211.46,211.42,0.03537258]
[1756867859792,7.42,211.45,211.42,0.03537258]
[1756867859995,1.71905946,211.46,211.42,0.03537258]
[1756867860593,7.42,211.45,211.42,0.03537258]
[1756867860797,1.71905946,211.46,211.42,0.03537258]
[1756867861299,7.42,211.45,211.42,0.03537258]
[1756867861499,1.71905946,211.46,211.42,0.03537258]
[1756867861695,7.42,211.45,211.42,0.03537258]
[1756867861902,1.71905946,211.46,211.42,0.03537258]
[1756867862102,7.42,211.45,211.42,0.03537258]
[1756867862399,1.71905946,211.46,211.42,0.03537258]
[1756867863102,9.13905946,211.48,211.42,0.03537258]
[1756867867596,7.42,211.48,211.42,1.75443204]
[1756867867898,9.13905946,211.51,211.44,1.71905946]
[1756867868299,7.42,211.51,211.44,1.71905946]
[1756867868692,7.42,211.51,211.43,7.83]
[1756867868894,7.42,211.51,211.43,9.54905946]
[1756867869897,1.71905946,211.49,211.4,1.71905946]
[1756867870106,7.42,211.48,211.4,1.71905946]
[1756867870601,7.42,211.48,211.39,9.54905946]
[1756867870907,7.42,211.46,211.39,9.54905946]
[1756867871402,7.42,211.46,211.37,1.71905946]
[1756867871608,7.17,211.44,211.36,1.71905946]
[1756867872002,7.17,211.44,211.38,1.71905946]
[1756867872505,7.17,211.44,211.35,7.44]
[1756867872506,7.17,211.44,211.36,1.71905946]
[1756867875007,8.88905946,211.44,211.36,1.71905946]
[1756867876408,7.17,211.44,211.36,1.71905946]
[1756867876997,8.88905946,211.44,211.36,1.71905946]
[1756867877804,8.88905946,211.44,211.35,7.44]
[1756867878004,8.88905946,211.44,211.36,1.71905946]
[1756867879011,7.17,211.44,211.36,1.71905946]
[1756867880803,7.17,211.42,211.35,7.44]
[1756867881004,1.71905946,211.41,211.35,7.44]
[1756867882410,7.17,211.42,211.36,4.41032906]
[1756867882610,7.17,211.42,211.35,7.44]
[1756867882810,7.17,211.42,211.36,4.41086238]
[1756867883010,7.17,211.42,211.35,7.44]
[1756867883305,7.17,211.42,211.36,4.41115286]
[1756867883505,8.88905946,211.43,211.37,4.41115286]
[1756867883710,8.88905946,211.43,211.35,7.44]
[1756867883911,8.88905946,211.43,211.36,4.41395406]
[1756867884113,8.88905946,211.43,211.37,4.41395406]
[1756867884413,8.88905946,211.43,211.35,7.44]
[1756867884707,8.88905946,211.43,211.36,4.41474495]
[1756867884912,8.88905946,211.43,211.37,4.41474495]
[1756867885112,8.88905946,211.43,211.35,7.44]
[1756867885410,8.88905946,211.43,211.36,4.41437918]
[1756867885610,8.88905946,211.43,211.37,4.41437918]
[1756867885811,7.17,211.42,211.38,4.41437918]
[1756867886007,8.88905946,211.43,211.35,7.44]
[1756867886311,8.88905946,211.43,211.36,4.41668831]
[1756867886512,8.88905946,211.43,211.37,4.41668831]
[1756867886712,8.88905946,211.43,211.35,7.44]
[1756867886914,8.88905946,211.43,211.36,4.41813553]
[1756867887112,8.88905946,211.43,211.37,4.41813553]
[1756867887411,8.88905946,211.43,211.35,7.44]
[1756867887412,14.18090965,211.43,211.35,7.44]
[1756867887612,14.18090965,211.43,211.36,4.41918179]
[1756867887808,14.18090965,211.43,211.37,4.41918179]
[1756867888010,14.18090965,211.43,211.35,7.44]
[1756867888306,7.87341422,211.46,211.28,8.19635]
[1756867888307,5.29185019,211.46,211.39,7.44]
[1756867888505,1.71905946,211.41,211.4,4.41915425]
[1756867888813,8.88905946,211.41,211.35,7.44]
[1756867889009,8.88905946,211.41,211.36,4.42058893]
[1756867889209,8.88905946,211.41,211.35,7.44]
[1756867889210,7.17,211.4,211.37,4.42058893]
[1756867889407,7.17,211.4,211.38,4.42058893]
[1756867889713,7.17,211.4,211.35,7.44]
[1756867889917,7.17,211.4,211.36,4.42136703]
[1756867890207,7.17,211.4,211.37,4.42136703]
[1756867890401,7.17,211.4,211.35,7.44]
[1756867890605,7.17,211.4,211.36,4.42017804]
[1756867890814,7.17,211.4,211.37,4.42017804]
[1756867891013,7.17,211.4,211.35,7.44]
[1756867891214,7.17,211.4,211.36,4.41666803]
[1756867891411,5.29185019,211.39,211.29,7.44]
[1756867891608,7.01090965,211.39,211.3,4.41799884]
[1756867891803,7.01090965,211.39,211.31,4.41799884]
[1756867892008,5.29185019,211.38,211.32,4.41799884]
[1756867892209,14.18090965,211.39,211.33,4.41799884]
[1756867892409,14.18090965,211.39,211.31,7.44]
[1756867892616,5.29185019,211.38,211.32,4.2908634]
[1756867892817,7.17,211.37,211.33,4.2908634]
[1756867893109,7.17,211.38,211.31,7.44]
[1756867893314,7.17,211.38,211.32,4.28858047]
[1756867893507,7.17,211.38,211.31,7.44]
[1756867893710,7.17,211.38,211.32,4.28866832]
[1756867893910,7.17,211.38,211.31,7.44]
[1756867894114,7.17,211.38,211.32,4.28883808]
[1756867894314,7.17,211.38,211.31,7.44]
[1756867894615,7.17,211.38,211.32,4.28801205]
[1756867894815,7.17,211.38,211.31,7.44]
[1756867895017,7.17,211.38,211.32,4.28789223]
[1756867895216,7.17,211.38,211.31,7.44]
[1756867895418,7.17,211.38,211.32,4.2871794]
[1756867895617,7.17,211.38,211.31,7.44]
[1756867895817,7.17,211.38,211.32,4.28709761]
[1756867896019,7.17,211.38,211.31,7.44]
[1756867896214,7.17,211.38,211.32,4.28588291]
[1756867896415,7.17,211.38,211.33,4.28527856]
[1756867896617,7.17,211.38,211.31,7.44]
[1756867896817,7.17,211.38,211.32,4.28412862]
[1756867897011,7.17,211.38,211.33,4.28412862]
[1756867897319,7.17,211.38,211.31,7.44]
[1756867897518,7.17,211.38,211.32,4.28382267]
[1756867897720,7.17,211.38,211.33,4.28382267]
[1756867897922,7.17,211.38,211.31,7.44]
[1756867898115,7.17,211.38,211.32,4.2835158]
[1756867898317,5.29185019,211.39,211.33,4.2835158]
[1756867898517,7.17,211.38,211.31,7.44]
[1756867898719,7.17,211.38,211.32,4.283095]
[1756867898918,12.46185019,211.39,211.33,4.283095]
[1756867899222,12.46185019,211.39,211.31,7.44]
[1756867899413,12.46185019,211.39,211.32,4.28247822]
[1756867899619,12.46185019,211.39,211.28,7.44]
[1756867899924,12.46185019,211.39,211.29,4.28269513]
[1756867900225,12.46185019,211.39,211.3,11.72269513]
[1756867900524,12.46185019,211.39,211.31,4.28269513]
[1756867900723,12.46185019,211.39,211.32,4.28269513]
[1756867900915,12.46185019,211.39,211.3,7.44]
[1756867901119,12.46185019,211.39,211.31,4.28081065]
[1756867901323,2.68797474,211.38,211.3,7.44]
[1756867901517,5.29185019,211.39,211.3,7.44]
[1756867901518,7.41,211.37,211.31,4.28050934]
[1756867901723,7.41,211.37,211.33,7.23]
[1756867902825,12.70185019,211.42,211.35,7.23]
[1756867903231,5.29185019,211.43,211.36,4.27720457]
[1756867903528,5.29185019,211.43,211.35,7.23]
[1756867903729,5.29185019,211.43,211.36,4.27693091]
[1756867903929,5.29185019,211.43,211.35,7.23]
[1756867904132,5.29185019,211.43,211.36,4.27821418]
[1756867904425,7.41,211.46,211.37,4.27771427]
[1756867904629,7.41,211.46,211.34,7.23]
[1756867904833,7.41,211.46,211.35,4.27766604]
[1756867905036,7.41,211.46,211.38,0.03006241]
[1756867905330,0.03040375,211.42,211.39,7.23]
[1756867911236,0.03040375,211.42,211.38,0.03006241]
[1756867911437,0.03040375,211.42,211.4,7.23]
[1756867911633,0.03040375,211.42,211.39,4.28564263]
[1756867911634,0.03040375,211.42,211.39,7.23]
[1756867911937,7.41,211.41,211.38,0.03006241]
[1756867912139,0.03040375,211.42,211.39,7.23]
[1756867912537,0.03040375,211.42,211.38,0.03006241]
[1756867912741,0.03040375,211.42,211.4,7.23]
[1756867913936,0.03040375,211.42,211.39,7.23]
[1756867914137,0.03040375,211.42,211.41,7.23]
[1756867914335,0.03040375,211.42,211.41,11.51396329]
[1756867922243,7.41,211.53,211.42,7.23]
[1756867922442,7.41,211.53,211.44,7.23]
[1756867922645,7.41,211.53,211.45,4.28396329]
[1756867922839,7.41,211.53,211.46,4.6967254]
[1756867923144,7.41,211.53,211.47,4.6967254]
[1756867923334,7.41,211.53,211.47,0.03355546]
[1756867924443,7.41,211.57,211.48,2.68797474]
[1756867925042,7.41,211.57,211.49,1.9]
[1756867928846,7.41,211.57,211.47,0.03355546]
[1756867929051,12.704946,211.57,211.47,0.03355546]
[1756867930250,7.41,211.57,211.47,1.91355546]
[1756867930948,7.41,211.57,211.49,1.88]
[1756867931343,7.41,211.57,211.52,2.68797474]
[1756867931549,7.21,211.61,211.52,4.57797474]
[1756867931949,7.21,211.61,211.52,4.60846191]
[1756867935853,7.21,211.61,211.52,1.92048717]
[1756867936955,7.21,211.61,211.52,0.03048717]
[1756867939155,7.21,211.61,211.52,1.92048717]
[1756867941146,7.21,211.61,211.56,2.68797474]
[1756867941353,7.21,211.68,211.57,1.89]
[1756867941756,7.21,211.68,211.6,0.03221998]
[1756867942356,7.21,211.68,211.6,1.92221998]
[1756867946861,7.21,211.68,211.6,0.03221998]
[1756867952268,2.68797474,211.67,211.6,0.03221998]
[1756867952466,7.21,211.66,211.6,0.03221998]
[1756867952870,7.21,211.66,211.52,1.89]
[1756867952871,7.21,211.63,211.52,1.89]
[1756867953072,7.21,211.63,211.53,4.59724105]
[1756867953261,7.21,211.63,211.52,1.89]
[1756867953468,48.06,211.71,211.48,1.92]
[1756867953469,2.68797474,211.61,211.48,1.92]
[1756867953669,7.21,211.6,211.49,4.5987807]
[1756867953863,7.21,211.6,211.5,4.5987807]
[1756867954062,7.21,211.6,211.48,1.92]
[1756867954268,7.21,211.6,211.49,4.60099177]
[1756867954572,7.21,211.57,211.53,0.03332342]
[1756867955169,2.68797474,211.58,211.53,0.03332342]
[1756867955468,7.21,211.57,211.53,0.03332342]
[1756867955672,7.21,211.66,211.55,1.92]
[1756867955871,7.21,211.66,211.56,4.59896159]
[1756867956073,7.21,211.66,211.57,4.59896159]
[1756867956269,7.21,211.66,211.58,0.03338244]
[1756867957575,7.21,211.66,211.6,1.71547091]
[1756867958174,7.21,211.66,211.62,1.71547091]
[1756867958470,7.21,211.66,211.58,1.95338244]
[1756867958775,7.21,211.66,211.62,1.71547091]
[1756867958976,7.21,211.68,211.58,0.03338244]
[1756867959170,7.21,211.68,211.6,1.71547091]
[1756867959379,7.21,211.68,211.62,1.71547091]
[1756867959572,7.21,211.68,211.62,1.74885166]
[1756867960177,1.71547091,211.72,211.63,4.60162406]
[1756867960372,7.21,211.71,211.62,1.74885166]
[1756867960571,7.21,211.71,211.63,4.60158101]
[1756867960771,7.21,211.71,211.62,1.74885166]
[1756867960968,7.21,211.71,211.63,4.60135594]
[1756867961183,7.21,211.71,211.62,1.74885166]
[1756867961673,7.87341422,211.78,211.62,1.74885166]
[1756867961674,7.15,211.77,211.69,1.71547091]
[1756867961873,7.15,211.8,211.73,1.71547091]
[1756867962377,7.15,211.8,211.74,0.03269735]
[1756867965580,8.86547091,211.8,211.74,0.03269735]
[1756867967276,7.15,211.8,211.56,4.2536]
[1756867967478,7.15,211.75,211.68,1.71547091]
[1756867967675,120.02,211.74,211.68,1.71547091]
[1756867968582,7.15,211.72,211.68,1.71547091]
[1756867968782,0.03454683,211.73,211.68,1.71547091]
[1756867969085,7.15,211.72,211.68,1.71547091]
[1756867969379,7.15,211.72,211.69,1.71547091]
[1756867969581,0.03454683,211.73,211.66,1.93]
[1756867969780,0.03454683,211.73,211.7,1.71547091]
[1756867969981,7.15,211.75,211.7,1.71547091]
[1756867970180,7.15,211.73,211.7,1.71547091]
[1756867971273,0.03001978,211.74,211.68,1.71547091]
[1756867971474,7.18001978,211.74,211.68,1.71547091]
[1756867971880,0.03001978,211.74,211.7,1.71547091]
[1756867972185,7.15,211.79,211.73,1.71547091]
[1756867972483,7.15,211.81,211.75,1.71547091]
[1756867972675,0.03442996,211.78,211.75,1.71547091]
[1756867972877,7.18442996,211.78,211.75,1.71547091]
[1756867974683,7.18442996,211.78,211.59,66.1584]
[1756867974684,7.15,211.77,211.5,132.3737]
[1756867974879,7.15,211.77,211.7,1.71547091]
[1756867975076,48.54,211.78,211.72,1.71547091]
[1756867975275,7.17987873,211.76,211.72,1.71547091]
[1756867976083,7.15,211.75,211.62,1.93]
[1756867976289,7.15,211.75,211.69,1.71547091]
[1756867976587,0.03576101,211.74,211.71,1.71547091]
[1756867976886,7.15,211.73,211.71,1.71547091]
[1756867980693,0.03576101,211.74,211.65,1.93]
[1756867980694,0.03576101,211.74,211.66,1.71547091]
[1756867980892,0.03576101,211.74,211.68,1.71547091]
[1756867981093,7.18576101,211.74,211.7,1.71547091]
[1756867981286,0.03576101,211.74,211.7,1.71547091]
[1756867981794,7.18576101,211.74,211.7,1.71547091]
[1756867982490,0.03576101,211.74,211.72,1.71547091]
[1756867982793,7.15,211.78,211.73,1.93]
[1756867982990,7.15,211.78,211.74,1.71547091]
[1756867983291,7.15,211.78,211.73,1.93]
[1756867983292,0.03320165,211.75,211.72,1.71547091]
[1756867987398,7.18320165,211.75,211.69,3.64547091]
[1756867987600,7.18320165,211.75,211.69,1.93]
[1756867987798,7.18320165,211.75,211.71,1.71547091]
[1756867987998,7.18320165,211.75,211.71,3.64547091]
[1756867988596,7.15,211.74,211.7,1.71547091]
[1756867988799,7.15,211.74,211.7,3.64547091]
[1756867989196,7.18233724,211.74,211.7,3.64547091]
[1756867990896,0.03233724,211.74,211.7,1.71547091]
[1756867991101,0.03233724,211.74,211.71,1.93]
[1756867991502,0.03233724,211.74,211.7,1.71547091]
[1756867992305,0.03233724,211.74,211.73,1.97]
[1756867992804,7.15,211.79,211.73,1.97]
[1756867993101,0.03137862,211.76,211.73,1.97]
[1756867995502,0.03137862,211.76,211.64,4.252]
[1756867995710,0.03137862,211.76,211.72,1.97]
[1756867996305,0.03137862,211.76,211.73,1.71547091]
[1756867996502,0.03137862,211.76,211.74,1.97]
[1756867996809,9.36547091,211.83,211.74,3.68547091]
[1756867997107,0.03512692,211.77,211.75,1.97]
[1756867999016,0.03512692,211.77,211.74,1.71547091]
[1756867999410,0.03512692,211.77,211.75,1.97]
[1756867999610,0.03512692,211.77,211.76,3.68547091]
[1756868000014,7.01041691,211.86,211.76,3.68547091]
[1756868000209,0.03273227,211.79,211.77,1.71547091]
[1756868000415,0.03273227,211.79,211.78,1.97]
[1756868000614,5.294946,211.85,211.78,1.97]
[1756868000816,0.03292672,211.81,211.78,1.97]
[1756868002215,0.03292672,211.81,211.77,1.97]